[Event "3rd elllobregat Open 2022"]
[Site "Baix Llobregat"]
[Date "2022.11.30"]
[Round "1.6"]
[White "Pourkashiyan, Atousa"]
[Black "Karthikeyan, Murali"]
[Result "0-1"]
[ECO "B45"]
[WhiteElo "2322"]
[BlackElo "2623"]
[Annotator "TA"]
[PlyCount "84"]
[EventDate "2022.11.30"]
[EventType "swiss"]
[EventCountry "ESP"]
[SourceTitle "playchess.com"]
[Source "ChessBase"]
[SourceQuality "1"]
[TimeControl "40/5400+30:1800+30"]

{[%evp 11,84,24,31,32,31,0,-4,-26,-9,-27,0,0,0,-19,-18,-11,-6,-29,-22,-100,-62,-60,4,-62,-57,-64,-61,-70,-68,-77,-73,-55,-63,-177,-177,-228,-196,-183,-182,-238,-259,-273,-265,-239,-256,-333,-324,-336,-309,-367,-376,-499,-470,-458,-437,-574,-573,-562,-556,-620,-594,-922,-925,-1833,-1527,-1621,-1463,-2134,-2014,-1542,-1195,-1305,-1298,-29995,-29996]} 1. e4 {[%emt 0:00:04]} c5 {[%emt 0:00:07]} 2. Nf3 {[%emt 0:00:06]} Nc6 {[%emt 0:00:06]} 3. d4 {[%emt 0:00:08]} cxd4 {[%emt 0:00:06]} 4. Nxd4 {[%emt 0:00:03]} Nf6 {[%emt 0:00:08]} 5. Nc3 {[%emt 0:00:07]} e6 {[%emt 0:00:06]} 6. Ndb5 {[%emt 0:01:11]} Bc5 {[%emt 0:00:17]} 7. Nd6+ {[%emt 0:03:58] B45: Sicilian Four Knights.} Ke7 $1 {[%emt 0:00:07]} 8. Nxc8+ {[%emt 0:00:48]} Rxc8 {[%emt 0:00:07]} 9. Be2 {[%emt 0:01:17] The position is equal.} ({Don't go for} 9. Bg5 $2 Qb6 10. Qd2 {[#]} Bxf2+ $1 {[%mdl 512]} 11. Kd1 (11. Qxf2 $2 Qxb2 12. Rb1 Qxc3+ 13. Qd2 Qxd2+ 14. Kxd2 Rc7 $19) 11... h6 12. Bxf6+ gxf6 $19) 9... Qc7 {[%emt 0:07:44]} 10. O-O {[%emt 0:02:15]} h5 {[%emt 0:00:32]} (10... Rhd8 {simplifies} 11. Bd3 Kf8 12. Bg5 Be7) 11. Bg5 {[%emt 0:03:43]} Kf8 {[%emt 0:07:50]} 12. Bxf6 {[%emt 0:16:27]} (12. Nb5 {looks sharper.} Qe5 13. Bxf6 gxf6 14. c3) 12... gxf6 {[%emt 0:00:42]} 13. Kh1 {[%emt 0:05:11]} a6 {[%emt 0:03:51]} 14. f4 {[%emt 0:09:04]} (14. Qd2 {simplifies} Qd6 15. Rad1 Qxd2 16. Rxd2 Ke7 17. Nb1) 14... Be3 {[%emt 0:07:03] [#]} 15. f5 $146 {[%emt 0:13:25]} (15. g3 $11 {remains equal.}) ({Predecessor:} 15. e5 fxe5 16. f5 h4 17. Bd3 Qd8 18. Be4 Nd4 19. fxe6 dxe6 20. Bxb7 Rb8 21. Be4 Rxb2 {0-1 (40) Eswaran,A (2244)-Vokhidov,S (2529) Chess.com INT 2020}) 15... Ke7 {[%emt 0:05:26]} 16. Qe1 {[%emt 0:08:23][%cal Oe2a6]} Bf4 {[%emt 0:13:59]} ({Black should play} 16... Ne5 $15) 17. Qh4 {[%emt 0:13:19]} (17. Qf2 $11 Be5 18. Rad1) 17... Bg5 $1 $15 {[%emt 0:01:09]} 18. Qf2 {[%emt 0:01:13] [#] Strongly threatening h4.} h4 $1 {[%emt 0:02:56]} 19. Qc5+ {[%emt 0:01:58]} Qd6 {[%emt 0:11:56]} 20. Qxd6+ {[%emt 0:01:10]} Kxd6 {[%emt 0:00:02]} 21. Rad1+ {[%emt 0:00:26]} Ke7 {[%emt 0:00:09]} 22. Na4 {[%emt 0:04:41] White is now going downhill.} (22. Nb1 $15) 22... Ne5 {[%emt 0:11:58]} 23. c4 {[%emt 0:00:19]} (23. Nc3 {keeps fighting.}) 23... Nxc4 {[%emt 0:00:44]} 24. Bxc4 {[%emt 0:01:26]} Rxc4 {[%emt 0:00:02]} 25. Rxd7+ {[%emt 0:00:15]} (25. Nb6 $142 Rc7 26. Rd3) 25... Kxd7 $19 {[%emt 0:00:06]} 26. Nb6+ {[%emt 0:00:02]} Ke7 {[%emt 0:00:15]} 27. Nxc4 {[%emt 0:00:03][%mdl 4096] Endgame KRB-KRN} Rc8 {[%emt 0:00:33]} 28. Na5 {[%emt 0:04:36]} b6 {[%emt 0:01:08]} 29. Nb3 {[%emt 0:00:10]} Rc2 {[%emt 0:01:37]} 30. Rb1 {[%emt 0:03:09]} e5 {[%emt 0:01:36]} 31. h3 {[%emt 0:05:03]} Re2 {[%emt 0:00:52]} 32. Kg1 {[%emt 0:01:06]} Be3+ {[%emt 0:00:50]} (32... Rxe4 $2 {is the wrong capture.} 33. a3 $19) 33. Kh1 {[%emt 0:00:06]} a5 {[%emt 0:04:00][%cal Ba6a5,Ba5b4][%mdl 32] White must now prevent ...a4.} 34. a4 {[%emt 0:01:18]} Bf2 {[%emt 0:00:43]} 35. Na1 {[%emt 0:00:56]} Rxe4 {[%emt 0:01:16]} 36. b3 {[%emt 0:00:20]} Re2 {[%emt 0:00:29] Prevents Nc2.} 37. b4 {[%emt 0:00:39]} axb4 {[%emt 0:00:32]} 38. Nb3 {[%emt 0:00:02]} e4 {[%emt 0:01:12]} 39. a5 {[%emt 0:00:14]} bxa5 {[%emt 0:00:05]} 40. Nxa5 {[%emt 0:00:00]} Kd6 {[%emt 0:00:00] ...e3 is the strong threat.} 41. g4 {[%emt 0:05:13]} hxg3 {[%emt 0:00:59] ( -> ...Bd4)} 42. h4 {[%emt 0:00:39]} Bd4 {[%emt 0:00:21] Weighted Error Value: White=0.72/Black=0.16 (very precise)} 0-1

[Event "3rd elllobregat Open 2022"]
[Site "Baix Llobregat"]
[Date "2022.11.30"]
[Round "1.7"]
[White "Santos Latasa, Jaime"]
[Black "Aarav Dengla"]
[Result "1-0"]
[ECO "D27"]
[WhiteElo "2665"]
[BlackElo "2357"]
[Annotator "TA"]
[PlyCount "99"]
[EventDate "2022.11.30"]
[EventType "swiss"]
[EventCountry "ESP"]
[SourceTitle "playchess.com"]
[Source "ChessBase"]
[SourceQuality "1"]
[TimeControl "40/5400+30:1800+30"]

{[%evp 12,99,38,19,28,41,49,18,18,11,18,10,7,9,9,19,20,0,44,47,47,40,46,47,43,40,56,36,50,46,69,60,53,63,122,117,120,125,134,121,117,117,127,127,123,123,120,121,114,122,145,160,168,160,170,164,164,157,264,270,277,176,217,209,207,166,257,260,258,265,340,224,219,171,333,324,609,606,564,575,540,475,564,564,1233,1105,3304,2007,5089,1502]} 1. d4 {[%emt 0:00:11]} d5 {[%emt 0:00:13]} 2. c4 {[%emt 0:00:22]} dxc4 {[%emt 0:00:28]} 3. e3 {[%emt 0:00:40]} e6 {[%emt 0:01:14]} 4. Bxc4 {[%emt 0:00:19]} c5 {[%emt 0:00:24]} 5. Nf3 {[%emt 0:00:00]} Nf6 {[%emt 0:00:05]} 6. O-O {[%emt 0:00:39]} a6 {[%emt 0:01:39]} 7. Nbd2 {[%emt 0:04:01]} Nc6 {[%emt 0:01:19][%cal Rc5d4] D27: Queen's Gambit Accepted: Classical main line: 7 e4!? and 7 a4.} 8. dxc5 {[%emt 0:00:00]} Bxc5 {[%emt 0:01:58]} 9. a3 {[%emt 0:02:57]} b5 {[%emt 0:01:05] The position is equal.} 10. Be2 {[%emt 0:02:11]} Bb7 {[%emt 0:02:18] [#]} 11. a4 $146 {[%emt 0:02:12]} ({Predecessor:} 11. b4 Be7 12. Bb2 O-O 13. Nb3 a5 14. Nc5 Bxc5 15. bxc5 Qxd1 16. Rfxd1 b4 17. axb4 axb4 {½-½ (41) Ding,L (2791)-Yu,Y (2709) chess24.com INT 2020}) 11... Qb6 {[%emt 0:08:53]} 12. axb5 {[%emt 0:00:15]} axb5 {[%emt 0:00:00]} 13. Rxa8+ {[%emt 0:00:00]} Bxa8 {[%emt 0:00:00]} 14. Nb3 {[%emt 0:05:30]} O-O {[%emt 0:08:48]} 15. Nxc5 {[%emt 0:00:00]} Qxc5 {[%emt 0:00:00]} 16. Qd3 {[%emt 0:09:27]} b4 {[%emt 0:11:54]} 17. Bd2 {[%emt 0:06:14]} Rd8 {[%emt 0:03:11]} 18. Rc1 {[%emt 0:07:06]} Qb6 {[%emt 0:10:56]} 19. Qc4 {[%emt 0:05:26]} Bb7 {[%emt 0:00:00]} 20. Be1 {[%emt 0:09:53]} Rc8 {[%emt 0:07:20]} 21. Qb5 {[%emt 0:05:08]} Qxb5 {[%emt 0:00:44]} 22. Bxb5 {[%emt 0:00:00]} Na7 {[%emt 0:11:22] Black is on the road to losing.} (22... Nd5 $14) 23. Rxc8+ $16 {[%emt 0:00:44]} Bxc8 {[%emt 0:01:14]} 24. Ba4 {[%emt 0:00:41]} Nd5 {[%emt 0:01:39]} 25. Nd4 {[%emt 0:04:57]} Bb7 {[%emt 0:01:56]} 26. Bd2 {[%emt 0:07:17]} e5 {[%emt 0:02:02]} 27. Nf5 {[%emt 0:00:00]} Nc8 {[%emt 0:12:55]} 28. Bb3 {[%emt 0:05:11]} e4 {[%emt 0:03:41]} 29. Nd4 {[%emt 0:02:42] White is more active.} Ncb6 {[%emt 0:01:35]} 30. Nc2 {[%emt 0:01:41]} Ba6 {[%emt 0:01:25]} 31. Nxb4 {[%emt 0:00:00]} Nxb4 {[%emt 0:00:03]} 32. Bxb4 {[%emt 0:00:00][%mdl 4096] Endgame KBB-KBN} Bc4 {[%emt 0:00:15]} 33. Bc2 {[%emt 0:01:22]} f5 {[%emt 0:02:48]} 34. f3 {[%emt 0:04:11]} Nd5 {[%emt 0:00:07]} (34... Bd5 $16 35. g4 g6) 35. Bc5 $18 {[%emt 0:00:00]} exf3 {[%emt 0:04:52]} 36. gxf3 {[%emt 0:00:28]} f4 {[%emt 0:00:39] [#]} 37. e4 {[%emt 0:00:00]} Nc7 {[%emt 0:02:02]} 38. Kf2 {[%emt 0:01:01] And now Bd6 would win.} Kf7 {[%emt 0:00:00]} (38... g5 $142 39. Bd6 Nb5) 39. Bd6 {[%emt 0:00:00][%csl LRc7,LRf4]} Ne6 {[%emt 0:01:17]} 40. h4 {[%emt 0:00:51][%cal Bh2h4,Bh4h5][%mdl 32]} g6 {[%emt 0:01:26]} 41. b3 {[%emt 0:02:50]} Bb5 {[%emt 0:00:00]} 42. b4 {[%emt 0:09:21]} h6 $2 {[%emt 0:13:22]} (42... Ke8 43. Bb3 Kd7) 43. Bb3 {[%emt 0:09:27]} g5 {[%emt 0:09:01]} (43... Kf6 44. Bd5 Bd3 45. e5+ Kf7) 44. h5 {[%emt 0:02:35] White is clearly winning.} Kf6 {[%emt 0:03:04]} 45. e5+ {[%emt 0:00:00]} Kf7 {[%emt 0:00:22]} 46. Bd5 {[%emt 0:00:12]} Bd7 {[%emt 0:01:39]} 47. Bc4 {[%emt 0:00:00] [#] Black must now prevent b5. This pair of bishops is nice.} Ke8 {[%emt 0:00:22]} 48. b5 {[%emt 0:00:00][%cal Bb4b5,Bb5b6][%mdl 32] Strongly threatening b6.} Nd4 {[%emt 0:01:33]} 49. b6 {[%emt 0:00:38] Threatening mate with b7.} Bc6 {[%emt 0:01:43] Prevents b7.} 50. Bc5 {[%emt 0:00:00] Weighted Error Value: White=0.11 (very precise) /Black=0.31} 1-0

[Event "3rd elllobregat Open 2022"]
[Site "Baix Llobregat"]
[Date "2022.11.30"]
[Round "1.7"]
[White "Puranik, Abhimanyu"]
[Black "Habans Aguerrea, Javier"]
[Result "0-1"]
[ECO "A13"]
[WhiteElo "2620"]
[BlackElo "2321"]
[Annotator "TA"]
[PlyCount "96"]
[EventDate "2022.11.30"]
[EventType "swiss"]
[EventCountry "ESP"]
[SourceTitle "playchess.com"]
[Source "ChessBase"]
[SourceQuality "1"]
[TimeControl "40/5400+30:1800+30"]

{[%evp 9,96,10,20,11,12,14,16,19,18,-35,-22,-50,-43,-62,-26,-50,-44,-38,-14,-31,-42,-65,-57,-52,-46,-56,-50,-62,0,-4,0,0,0,-13,-28,-66,-60,-62,-57,-60,-50,-124,-120,-136,-84,-109,-100,-216,-172,-165,-159,-157,-153,-332,-289,-331,-284,-268,-265,-263,-262,-277,-262,-255,-260,-254,-272,-267,-246,-250,-247,-291,-260,-271,-272,-346,-358,-362,-356,-356,-357,-335,-329,-569,-550,-565,-462,-634,-618]} 1. c4 {[%emt 0:00:12]} e6 {[%emt 0:00:35]} 2. Nf3 {[%emt 0:01:17]} d5 {[%emt 0:00:32]} 3. b3 {[%emt 0:00:38]} Nf6 {[%emt 0:01:18]} 4. Bb2 {[%emt 0:00:06]} c5 {[%emt 0:01:34]} 5. cxd5 {[%emt 0:02:06]} exd5 {[%emt 0:00:25]} 6. g3 {[%emt 0:00:44] A13: English Opening: 1...e6.} Nc6 {[%emt 0:01:21]} 7. Bg2 {[%emt 0:01:02]} d4 {[%emt 0:05:19]} 8. O-O {[%emt 0:01:34] The position is equal.} Be7 {[%emt 0:00:55]} 9. d3 {[%emt 0:03:01]} ({Better is} 9. Na3 $11) 9... O-O {[%emt 0:00:47]} 10. Nbd2 {[%emt 0:00:07]} Be6 {[%emt 0:05:39]} 11. a3 {[%emt 0:03:09] [#]} a5 $146 {[%emt 0:02:12] Black is more active.} ({Predecessor:} 11... Rc8 12. Rc1 Nd5 13. Re1 b6 14. e3 dxe3 15. fxe3 Bf6 16. d4 cxd4 17. exd4 g6 {0-1 (38) Jambresic,F (2030)-Tica,S (2442) Sv Filip i Jakov 2018}) 12. Rc1 {[%emt 0:02:51]} Rc8 {[%emt 0:05:58]} 13. Re1 {[%emt 0:05:00]} Re8 {[%emt 0:01:39]} 14. Qc2 {[%emt 0:02:16]} (14. e3 $5) 14... h6 {[%emt 0:01:45]} 15. Qb1 {[%emt 0:01:35]} Nd5 {[%emt 0:09:17]} 16. e3 {[%emt 0:04:03]} dxe3 {[%emt 0:02:36]} 17. fxe3 {[%emt 0:00:02]} Nf6 {[%emt 0:01:54]} 18. Bxf6 {[%emt 0:13:32]} gxf6 {[%emt 0:16:13]} (18... Bxf6 $15 19. Rxc5 b6) 19. Ne4 {[%emt 0:06:19]} Qb6 {[%emt 0:05:04]} 20. Qa1 {[%emt 0:03:46]} Kg7 {[%emt 0:01:27]} 21. Nfd2 {[%emt 0:06:42]} (21. Rxc5 $5 Bxc5 22. Qxf6+ Kh7 23. Nfg5+ hxg5 24. Qxg5 $11) 21... Ne5 {[%emt 0:02:29]} 22. Nc4 {[%emt 0:00:55]} Bxc4 {[%emt 0:03:32]} ({But not} 22... Qxb3 23. Nxe5 (23. Nxa5 Qa4 $17) 23... fxe5 24. Rb1 $16 (24. Qxe5+ f6 $16)) 23. bxc4 {[%emt 0:00:12]} Nxd3 {[%emt 0:01:50]} 24. Rb1 {[%emt 0:00:03]} Qe6 {[%emt 0:04:20]} 25. Red1 {[%emt 0:04:13]} ({White should try} 25. Rf1 $1 $15) 25... Ne5 $17 {[%emt 0:00:40]} 26. Rxb7 {[%emt 0:01:29]} Rb8 {[%emt 0:01:02]} (26... Nxc4 $142 27. Qc3 Ne5) 27. Rxb8 {[%emt 0:06:03]} Rxb8 {[%emt 0:00:03]} 28. Rc1 {[%emt 0:05:29]} (28. Nd2 $17) 28... f5 {[%emt 0:03:49]} 29. Bh3 {[%emt 0:06:19]} Bf6 $36 {[%emt 0:02:40][%mdl 2048] White is under strong pressure.} 30. Nxf6 {[%emt 0:00:55]} Qxf6 {[%emt 0:00:09]} 31. Rf1 $2 {[%emt 0:09:35] [#] White does not recover from this.} (31. Rb1 $17) 31... Nf3+ $1 $19 {[%emt 0:01:31][%mdl 512]} 32. Kh1 {[%emt 0:00:06] And now Qxf6+ would win.} Qxa1 {[%emt 0:01:28]} 33. Rxa1 {[%emt 0:00:01][%mdl 4096] Endgame KRB-KRN} Rb2 {[%emt 0:00:02][%csl Gf3][%cal Rb2h2]} 34. Bg2 {[%emt 0:00:02]} Ne5 {[%emt 0:01:19][%cal Bf3e5,Be5g4,Bg4e3][%mdl 32]} 35. Bd5 {[%emt 0:01:28]} Ng4 {[%emt 0:00:18][%csl LRe3,LRh2]} 36. Kg1 {[%emt 0:00:58]} Nxe3 {[%emt 0:00:36]} ({Worse is} 36... Rxh2 37. Bg2 $19) 37. Re1 {[%emt 0:00:03] [#]} Rb3 {[%emt 0:00:45]} 38. a4 {[%emt 0:01:44]} Kf6 {[%emt 0:00:07]} 39. Kf2 {[%emt 0:02:38] [#]} Ng4+ {[%emt 0:04:38]} 40. Kg1 {[%emt 0:00:00]} Ne5 {[%emt 0:00:00]} 41. Ra1 {[%emt 0:00:54]} Rb4 {[%emt 0:03:07]} 42. Kf2 {[%emt 0:00:52]} Nxc4 {[%emt 0:00:31]} 43. Rc1 {[%emt 0:00:23]} Ne5 {[%emt 0:01:24] Strongly threatening ...Nd3+.} 44. Ke3 {[%emt 0:00:32] Prevents Nd3.} c4 {[%emt 0:00:33]} (44... Rxa4 $2 {loses.} 45. Rxc5 Ng4+ 46. Ke2 $19) 45. Kd4 {[%emt 0:01:01]} Rxa4 {[%emt 0:00:27]} 46. Rb1 $2 {[%emt 0:00:52]} (46. Rf1) 46... Rb4 {[%emt 0:00:22] Black is clearly winning.} 47. Ra1 {[%emt 0:00:07]} a4 {[%emt 0:01:11]} 48. Ra3 {[%emt 0:01:47]} Rb3 {[%emt 0:02:57] Weighted Error Value: White=0.30/Black=0.12 (very precise)} 0-1

[Event "3rd elllobregat Open 2022"]
[Site "Baix Llobregat"]
[Date "2022.11.30"]
[Round "1.8"]
[White "Gungl, Theo"]
[Black "Aryan Chopra"]
[Result "1/2-1/2"]
[ECO "E52"]
[WhiteElo "2352"]
[BlackElo "2629"]
[Annotator "TA"]
[PlyCount "70"]
[EventDate "2022.11.30"]
[EventType "swiss"]
[EventCountry "ESP"]
[SourceTitle "playchess.com"]
[Source "ChessBase"]
[SourceQuality "1"]
[TimeControl "40/5400+30:1800+30"]

{[%evp 17,70,-4,0,0,0,0,6,16,10,7,43,41,44,42,47,57,71,43,42,30,77,27,27,26,16,16,30,10,14,10,29,10,36,12,54,18,88,31,58,9,18,18,18,18,18,16,16,11,22,20,19,26,24,29,22]} 1. d4 {[%emt 1:04:44]} Nf6 {[%emt 0:44:44]} 2. c4 {[%emt 0:00:30]} e6 {[%emt 0:00:30]} 3. Nc3 {[%emt 0:00:30]} d5 {[%emt 0:00:30]} 4. Nf3 {[%emt 0:00:30]} Bb4 {[%emt 0:00:30]} 5. e3 {[%emt 0:00:30]} O-O {[%emt 0:00:30]} 6. Bd2 {[%emt 0:00:30]} b6 {[%emt 0:00:30]} 7. cxd5 {[%emt 0:00:30]} exd5 {[%emt 0:00:30]} 8. Bd3 {[%emt 0:00:30]} Bb7 {[%emt 0:00:30]} 9. O-O {[%emt 0:00:30]} Bd6 {[%emt 0:00:30] is the new trend.} 10. Qb1 {[%emt 0:00:30] E52: Nimzo-Indian: Rubinstein: 4...0-0 5 Nf3 d5 6 Bd3 b6.} Re8 {[%emt 0:00:30]} 11. b4 {[%emt 0:00:30]} a6 {[%emt 0:00:30]} 12. a4 {[%emt 0:00:30] The position is equal.} Nbd7 {[%emt 0:00:30]} 13. b5 {[%emt 0:00:30]} a5 {[%emt 0:00:30]} 14. Qb3 {[%emt 0:00:30] [#]} Ne4 $146 {[%emt 0:00:30]} ({Predecessor:} 14... h6 15. Kh1 Bb4 16. Ne1 Rc8 17. Be2 c6 18. bxc6 Rxc6 19. Bb5 Rc7 20. Rc1 Bc6 {½-½ (40) Lange,S-Muller,H DESC email 2013}) 15. Bc1 {[%emt 0:00:30]} ({But not} 15. Nxd5 Ndc5 $1 16. dxc5 Nxc5 $17) 15... Re6 {[%emt 0:00:30]} 16. Ba3 {[%emt 0:00:30]} ({And not} 16. Nxd5 Ndc5 $1 17. dxc5 Nxc5 $17) 16... Bxa3 {[%emt 0:00:30]} 17. Qxa3 {[%emt 0:00:30]} Rc8 {[%emt 0:00:30]} 18. Rac1 {[%emt 0:00:30]} (18. Rfb1 {feels hotter.} Rg6 19. Ne2 c5 20. bxc6 Rgxc6 21. h3) 18... Nf8 {[%emt 0:00:30]} (18... c5 $11) 19. Rc2 {[%emt 0:00:30]} ({White should try} 19. Ne5 $16) 19... c5 $11 {[%emt 0:00:30]} 20. bxc6 {[%emt 0:00:30]} Rexc6 {[%emt 0:00:30]} 21. Rfc1 {[%emt 0:00:30]} Ng6 {[%emt 0:00:30]} 22. Qb3 {[%emt 0:00:30]} Nxc3 {[%emt 0:00:30]} 23. Rxc3 {[%emt 0:00:30]} Qd6 {[%emt 0:00:30]} 24. Bb5 {[%emt 0:00:30]} R6c7 {[%emt 0:00:30]} 25. g3 {[%emt 0:00:30]} Kf8 {[%emt 0:00:30]} (25... Rxc3 {simplifies} 26. Rxc3 Rxc3 27. Qxc3 Ne7) 26. h4 {[%emt 0:00:30]} f6 {[%emt 0:00:30] [#]} (26... Rxc3 $11 {keeps the balance.} 27. Rxc3 Ne7) 27. Kg2 {[%emt 0:00:30]} (27. Rxc7 $1 $16 Rxc7 28. Rb1) 27... Ne7 {[%emt 0:00:30]} 28. Ne1 {[%emt 0:00:30]} (28. Rxc7 $14 Rxc7 29. Rb1) 28... Rc4 {[%emt 0:00:30][%cal Od6b4] ...Qb4! is the strong threat.} 29. Kf1 {[%emt 0:00:30]} Rxc3 {[%emt 0:00:30]} 30. Rxc3 {[%emt 0:00:30]} Rxc3 {[%emt 0:00:30]} 31. Qxc3 {[%emt 0:00:30]} Bc8 {[%emt 0:00:30]} 32. Nd3 {[%emt 0:00:30]} Bf5 {[%emt 0:00:30]} 33. Nf4 {[%emt 0:00:30]} g5 {[%emt 0:00:30]} 34. hxg5 {[%emt 0:00:30]} fxg5 {[%emt 0:00:30] And now ...Qh6 would win.} 35. Nd3 {[%emt 0:00:30]} Ng6 {[%emt 0:00:30] Weighted Error Value: White=0.12 (very precise) /Black=0.15 (very precise)} 1/2-1/2

[Event "3rd elllobregat Open 2022"]
[Site "Baix Llobregat"]
[Date "2022.11.30"]
[Round "1.8"]
[White "Esplugas Esteve, Vicenc"]
[Black "Svane, Rasmus"]
[Result "1/2-1/2"]
[ECO "E20"]
[WhiteElo "2321"]
[BlackElo "2619"]
[Annotator "TA"]
[PlyCount "83"]
[EventDate "2022.11.30"]
[EventType "swiss"]
[EventCountry "ESP"]
[SourceTitle "playchess.com"]
[Source "ChessBase"]
[SourceQuality "1"]
[TimeControl "40/5400+30:1800+30"]

{[%evp 9,83,0,20,9,20,0,9,3,0,0,10,8,15,0,2,6,0,11,8,0,0,0,25,0,0,0,43,0,11,-14,19,26,29,18,24,17,38,33,31,25,27,0,10,-52,-39,-52,-54,-61,-60,-113,-126,-173,-72,-66,0,0,1,1,7,0,7,0,0,0,0,0,0,0,43,44,44,44,44,44,49,35]} 1. d4 {[%emt 0:00:02]} Nf6 {[%emt 0:00:13]} 2. c4 {[%emt 0:00:08]} e6 {[%emt 0:00:08]} 3. Nc3 {[%emt 0:00:06]} Bb4 {[%emt 0:00:16]} 4. f3 {[%emt 0:00:07]} c5 {[%emt 0:00:07]} 5. d5 {[%emt 0:00:08]} b5 {[%emt 0:00:06]} 6. e4 {[%emt 0:00:10] E20: Nimzo-Indian: 4 g3 and 4 f3.} d6 $1 {[%emt 0:00:05][%mdl 4] outshines the older 6...bxc4.} 7. Bd2 {[%emt 0:00:28]} Bxc3 {[%emt 0:00:17]} 8. Bxc3 {[%emt 0:00:08] The position is equal.} b4 {[%emt 0:00:04]} 9. Bd2 {[%emt 0:00:08]} O-O {[%emt 0:00:07]} 10. Be3 {[%emt 0:01:16]} exd5 {[%emt 0:00:13]} 11. cxd5 {[%emt 0:00:08]} Ne8 {[%emt 0:00:06]} 12. Ne2 {[%emt 0:10:22]} f5 {[%emt 0:00:21] [#]} 13. exf5 $146 {[%emt 0:03:36]} ({Predecessor:} 13. Nf4 fxe4 14. fxe4 Nd7 15. Be2 Ne5 16. O-O Qe7 17. a3 Rb8 18. Nd3 Rxf1+ 19. Qxf1 bxa3 20. bxa3 {½-½ (36) Schmidt,T (2432)-Ellis,L (2424) ICCF email 2020}) 13... Bxf5 {[%emt 0:16:32]} 14. Ng3 {[%emt 0:04:13]} Nd7 {[%emt 0:01:35]} 15. Be2 {[%emt 0:06:36]} Nc7 {[%emt 0:03:58]} 16. O-O {[%emt 0:11:59]} Bg6 {[%emt 0:31:25]} 17. Qd2 {[%emt 0:09:08]} ({Reject} 17. Ne4 Qe7 $15) 17... Nf6 {[%emt 0:09:16]} 18. Rad1 {[%emt 0:06:31]} Qd7 {[%emt 0:09:24]} 19. Bc4 {[%emt 0:05:40]} h6 {[%emt 0:06:47]} 20. Bf4 {[%emt 0:04:57]} Rae8 {[%emt 0:02:48]} 21. Rfe1 {[%emt 0:00:23][%cal Oe1e6]} Kh7 {[%emt 0:07:39]} 22. h4 {[%emt 0:06:51]} Rxe1+ {[%emt 0:00:43]} 23. Rxe1 {[%emt 0:00:32][%cal Oe1e6]} Re8 {[%emt 0:00:17] Inhibits Re6.} 24. Rxe8 {[%emt 0:00:54]} Ncxe8 {[%emt 0:09:02]} 25. Qe1 {[%emt 0:09:12]} Bf7 {[%emt 0:00:00]} 26. Bd3+ {[%emt 0:08:43] A strong pair of Bishops.} (26. b3 $11) 26... Kh8 $15 {[%emt 0:00:00]} 27. Bf5 {[%emt 0:03:05]} Qb7 {[%emt 0:00:00]} 28. Be6 {[%emt 0:00:09]} Nxd5 {[%emt 0:00:00]} 29. Bxd5 {[%emt 0:00:34]} (29. Qe4 $1 $15) 29... Qxd5 $17 {[%emt 0:00:00]} 30. Qe7 {[%emt 0:00:21] [#]} (30. Ne4 $17) 30... Qxa2 {[%emt 0:01:37]} (30... Kg8 $1 $19 31. Ne4 Qd4+ 32. Kh2 Qxb2) 31. Ne4 {[%emt 0:01:19]} Qc4 {[%emt 0:01:10]} (31... Qe6 $15 32. Qxe6 Bxe6) 32. Nxd6 $11 {[%emt 0:03:38]} Nxd6 {[%emt 0:01:19]} 33. Bxd6 {[%emt 0:00:11][%mdl 4096] Endgame Strongly threatening Be5. KQB-KQB} Qd4+ {[%emt 0:00:10]} 34. Kh2 {[%emt 0:00:32]} Qd5 {[%emt 0:01:08]} 35. Be5 {[%emt 0:01:52] [#] Threatening mate with Qf8+.} Kg8 {[%emt 0:00:14] Against Qf8+} 36. f4 {[%emt 0:02:43]} a5 {[%emt 0:00:01]} 37. Qc7 {[%emt 0:00:41] aiming for Qc8+.} Qe4 {[%emt 0:01:15]} 38. Qxc5 {[%emt 0:00:20]} Qf5 {[%emt 0:00:34]} 39. Qxa5 {[%emt 0:00:18] White is slightly better.} Qg4 {[%emt 0:00:21]} 40. Qd8+ {[%emt 0:00:00]} Kh7 {[%emt 0:00:00][%cal Of7d5]} 41. Qd3+ {[%emt 0:06:09]} Bg6 {[%emt 0:01:12]} 42. Qg3 {[%emt 0:00:18] Weighted Error Value: White=0.11 (very precise) /Black=0.12 (very precise)} 1/2-1/2